Cogmind - Beta 16 @@@ ROGUE MODE // 2025.11.30 @ 22:55:16 Player: Akamichi1342 Result: Destroyed by Y-45 Defender with Heavy Assault Rifle Performance ------------- Evolutions (1) 500 Regions Visited (2) 400 Robots Destroyed (18) 90 Value Destroyed (460) 460 Prototype IDs (1) 20 Alien Tech Used (0) 0 Bonus (0) 0 TOTAL SCORE: 1470 Bonus ------- None Cogmind --------- Core Integrity 0/400 Matter 300/300 Energy 100/100 System Corruption 8% Temperature Cool (9) Movement Core (100) Ox1 Location -9/Materials Parts ------- > --- POWER (1) -------- (None) > --- PROPULSION (3) --- (None) > --- UTILITY (3) ------ Heat Sink Small Storage Unit > --- WEAPON (2) ------- (None) > --- INVENTORY (8) ---- Ion Engine Peak State ------------ > --- POWER ------------ Ion Engine > --- PROPULSION ------- Aluminum Leg > --- UTILITY ---------- Heat Sink Small Storage Unit > --- WEAPON ----------- Small Laser Improved Assault Rifle > --- INVENTORY -------- (None) [Rating: 8] Favorites ----------- Power Light Ion Engine Engine Light Ion Engine Propulsion Light Treads Treads Light Treads Leg Aluminum Leg Hover Unit Hover Unit Utility Small Storage Unit Device Heat Sink Storage Small Storage Unit Weapon Assault Rifle Energy Gun Medium Laser Ballistic Gun Assault Rifle Build | -11 -10 -9 ------- Run | Yrd Mat Mat Slots Evolved 2 | . . 2 Power . | . . . Propulsion 1 | . . 1 Utility 1 | . . 1 Weapon . | . . . Parts Attached 14 | 6 . 8 Power 3 | 1 . 2 Engine 3 | 1 . 2 Core . | . . . Reactor . | . . . Propulsion 4 | 2 . 2 Treads 2 | 2 . . Leg 1 | . . 1 Wheel . | . . . Hover 1 | . . 1 Flight . | . . . Utility 2 | 1 . 1 Device 1 | . . 1 Storage 1 | 1 . . Processor . | . . . Hackware . | . . . Protection . | . . . Artifact . | . . . Weapon 5 | 2 . 3 Energy Gun 2 | 1 . 1 Energy Cannon . | . . . Ballistic Gun 3 | 1 . 2 Ballistic Cannon . | . . . Launcher . | . . . Special Weapon . | . . . Impact Weapon . | . . . Slashing Weapon . | . . . Piercing Weapon . | . . . Special Melee Weapon . | . . . Unidentified Prototypes 1 | . . 1 Parts Lost 10 | . . 10 Power 2 | . . 2 Propulsion 4 | . . 4 Utility . | . . . Weapon 4 | . . 4 Highest Loss Streak 5 | . . 5 To Critical Strikes . | . . . Average Backups . | . . . Power . | . . . Propulsion . | . . . Utility . | . . . Weapon . | . . . Tool/Special . | . . . Unused Backups . | . . . Power . | . . . Propulsion . | . . . Utility . | . . . Weapon . | . . . Tool/Special . | . . . Average Slot Usage (%) 72 | . 85 60 Engine 11 | . 14 8 Treads 16 | . 28 5 Leg 3 | . . 7 Hover 1 | . . 3 Device 3 | . . 7 Storage 12 | . 14 11 Energy Gun 11 | . 14 9 Ballistic Gun 10 | . 14 7 Peak Build Rating 8 | 6 6 8 Average Rating 5 | 4 6 5 On Entrance 4 | . 6 6 Avg Prop Armor Cover (%) 7 | . . 7 Naked Turns . | . . . Heaviest Build 15 | 12 12 15 Greatest Support 40 | 40 40 40 Greatest Overweight (x) 2 | . . 2 Average Overweight (x) . | . . . Largest Inventory Capacity 8 | 8 8 8 Average Capacity 7 | 7 8 8 Most Carried 1 | . . 1 Average Carried . | . . . Final Capacity 8 | 8 8 8 Final Carried 1 | . . 1 Class Distribution -------------------- 70% | Mutant 29% | Scavenger-Mutant Dominant Class ---------------- Mutant | -10/Materials Scavenger-Mutant | -9/Materials Resources | -11 -10 -9 ----------- Run | Yrd Mat Mat Matter Collected 432 | 242 96 94 Remotely . | . . . Salvage Created 586 | . 296 290 Parts 36 | . 17 19 Haulers Intercepted . | . . . Recyclers Shooed . | . . . Parts Field Recycled . | . . . Retrieved Matter . | . . . Parts Self-Destructed . | . . . Prevented . | . . . Parts Restored . | . . . Kills | -11 -10 -9 ------- Run | Yrd Mat Mat Combat Hostiles Destroyed 15 | . 6 9 Melee 1 | . . 1 Guns 14 | . 6 8 Classes Destroyed 7 | . 3 4 Worker 1 | . . 1 Builder 1 | . 1 . Operator 1 | . 1 . Swarmer 4 | . . 4 Grunt 9 | . 6 3 Duelist 1 | . . 1 Sentry 1 | . . 1 Best Kill Streak 4 | . 4 3 Combat Bots Only 4 | . 4 3 Max Kills in Single Turn 1 | . 1 1 Gunslinging . | . . . Exploded . | . . . Melee 1 | . . 1 Uniques/NPCs Destroyed . | . . . Combat | -11 -10 -9 -------- Run | Yrd Mat Mat Hostile Shots Fired 135 | . 38 97 Missed 33 | . 12 21 Hits 102 | . 26 76 Melee 10 | . . 10 Projectile 92 | . 26 66 Critical Strikes 6 | . . 6 Damage Taken 1422 | . 290 1132 Core 464 | . 56 408 Absorbed by Shields . | . . . Core Remaining (%) 88 | 100 77 . Volleys Fired 65 | . 26 39 Largest 2 | . 2 2 Hottest 70 | . 70 70 Shots Fired 112 | . 52 60 Gun 112 | . 52 60 Cannon . | . . . Launcher . | . . . Special . | . . . Kinetic 54 | . 26 28 Thermal 58 | . 26 32 Explosive . | . . . Electromagnetic . | . . . Robot Hit Streak 21 | . 9 21 Robot Miss Streak 3 | . 2 3 Penetration Max . | . . . Secondary Targets 1 | . . 1 Max Gunslinging Chain 1 | . . 1 Shots Hit Robots 77 | . 37 40 Core Hits 37 | . 16 21 Critical Kills . | . . . Critical Parts Destroyed . | . . . Critical Strikes 2 | . 2 . Burn 2 | . 2 . Melee Attacks . | . . . Impact . | . . . Slashing . | . . . Piercing . | . . . Sneak Attacks . | . . . Combat Hostiles . | . . . Follow-up Attacks . | . . . Damage Inflicted 1033 | . 463 570 Guns 975 | . 458 517 Cannons . | . . . Explosions . | . . . Melee . | . . . Ramming 58 | . 5 53 Kinetic 451 | . 217 234 Thermal 524 | . 241 283 Explosive . | . . . Electromagnetic . | . . . Impact . | . . . Slashing . | . . . Piercing . | . . . Highest Corruption 8 | . . 8 Average Corruption 4 | . . 4 Corruption Purged . | . . . Corruption Blocked . | . . . Effects 4 | . . 4 Energy Discharges 1 | . . 1 Data Loss (major) 1 | . . 1 Alerts 2 | . . 2 Overload Shots . | . . . Overflow Damage . | . . . Projectiles . | . . . Explosions . | . . . Melee . | . . . Knockbacks . | . . . Impact . | . . . Kinetic . | . . . Secondary . | . . . Self-Inflicted Damage 19 | . . 19 Shots . | . . . Rammed 30 | . 1 29 Targets Rammed 31 | . 1 30 Kicked 1 | . . 1 Crushed . | . . . Highest Temperature 135 | . 135 14 Average Temperature 40 | . 49 11 Received Heat Transfer 435 | . 156 279 Siege Activations . | . . . Martial Activations . | . . . Shielding Activations . | . . . Robots Disrupted . | . . . Combat Hostiles . | . . . Robots Corrupted . | . . . Combat Hostiles . | . . . Parts Fried . | . . . Impact Corruptions . | . . . Robots Melted . | . . . Combat Hostiles . | . . . Parts Melted 4 | . 4 . Heat Transferred 1547 | . 851 696 Parts Sabotaged . | . . . Parts Stolen . | . . . Parts Stripped . | . . . Power Chain Reactions . | . . . Alert | -11 -10 -9 ------- Run | Yrd Mat Mat Maximum Alert Level . | . . . Low Security (%) 100 | 100 100 100 Level 1 . | . . . Level 2 . | . . . Level 3 . | . . . Level 4 . | . . . Level 5 . | . . . High Security . | . . . Max Security . | . . . Peak Influence 87 | . 87 81 Initial 36 | . . 36 Average 19 | . 12 30 Influence Increases 442 | . 181 261 Destroy 0b10 Robot/C 300 | . 120 180 Destroy 0b10 Robot/NC 15 | . 10 5 Destroy Leader 60 | . 30 30 Successful Hack 6 | . 6 . Destroy Structure 1 | . . 1 Lose Combat Pursuer 60 | . 15 45 Influence Decreases 417 | . 94 323 Entered New Map 51 | . . 51 Time Decay 280 | . 94 186 Lost Part 86 | . . 86 Squads Dispatched 4 | . 3 1 Investigation 2 | . 2 . Extermination . | . . . Reinforcement 2 | . 1 1 Assault . | . . . Garrison . | . . . Intercept . | . . . Searches Triggered . | . . . Construction Impeded . | . . . Haulers Reinforced . | . . . Active Scanning Responses . | . . . Cargo Convoy Interrupts . | . . . Stealth | -11 -10 -9 --------- Run | Yrd Mat Mat Distress Signals 2 | . 1 1 Communications Jammed . | . . . Distress Signals . | . . . Times Spotted 28 | . 15 13 Peak Tracking Total 5 | . 5 5 Tactical Retreats 3 | . 1 2 Traps | -11 -10 -9 ------- Run | Yrd Mat Mat Traps Triggered 2 | . 2 . Indirectly . | . . . Trap Hack Attempts . | . . . Triggered . | . . . Disarmed . | . . . Reprogrammed . | . . . Reused . | . . . Traps Extracted . | . . . Installed . | . . . Triggered . | . . . Machines | -11 -10 -9 ---------- Run | Yrd Mat Mat Machines Disabled . | . . . Max in Single Turn . | . . . Machines Repaired . | . . . Machines Dismantled . | . . . Machines Sabotaged . | . . . Overloaded Fab Kills . | . . . Hacking | -11 -10 -9 --------- Run | Yrd Mat Mat Machines Accessed 2 | . 1 1 Terminals 1 | . 1 . Fabricators . | . . . Repair Stations . | . . . Recycling Units . | . . . Scanalyzers 1 | . . 1 Garrison Access . | . . . Total Hacks 3 | . 1 2 Successful 1 | . 1 . Failed 2 | . . 2 Catastrophic 1 | . . 1 Database Lockouts . | . . . Manual 1 | . 1 . Terminals 1 | . 1 . Fabricators . | . . . Repair Stations . | . . . Recycling Units . | . . . Scanalyzers 2 | . . 2 Garrison Access . | . . . Terminal Hacks 1 | . 1 . Terminal Index 1 | . 1 . Fabricator Hacks . | . . . Repair Station Hacks . | . . . Recycling Unit Hacks . | . . . Scanalyzer . | . . . Garrison Access Hacks . | . . . Unauthorized Hacks . | . . . Terminals . | . . . Fabricators . | . . . Repair Stations . | . . . Recycling Units . | . . . Scanalyzers . | . . . Garrison Access . | . . . Data Cores Recovered . | . . . Used . | . . . Hacking Detections 1 | . . 1 Full Trace Events . | . . . Feedback Events . | . . . Feedback Blocked . | . . . Robot Schematics Acquired . | . . . Robots Built . | . . . Authchips . | . . . Time . | . . . Total Robot Build Rating . | . . . Part Schematics Acquired . | . . . Parts Built . | . . . Authchips . | . . . Time . | . . . Total Part Build Rating . | . . . Part Studies Acquired . | . . . Parts Repaired . | . . . Time . | . . . Parts Recycled . | . . . Recycled Matter . | . . . Retrieved Matter . | . . . Retrieved Components . | . . . Parts Scanalyzed . | . . . Part Schematics Acquired . | . . . Parts Damaged . | . . . Bothacking | -11 -10 -9 ------------ Run | Yrd Mat Mat Used RIF Installer . | . . . Robots Hacked . | . . . Non-combat . | . . . Combat . | . . . Robot Hacks Applied . | . . . Relay Couplers Released . | . . . Fabnet Peak Effective % . | . . . Robots Rewired . | . . . Allies Hacked . | . . . Hacks Repelled . | . . . Allies | -11 -10 -9 -------- Run | Yrd Mat Mat Total Allies . | . . . Largest Group . | . . . Highest-Rated Group . | . . . Highest-Rated Ally . | . . . Total Orders . | . . . Ally Attacks . | . . . Total Damage . | . . . Kills . | . . . Allies Corrupted . | . . . Allies Melted . | . . . Intel | -11 -10 -9 ------- Run | Yrd Mat Mat Active Infowar (turns) . | . . . Robot Analysis Total . | . . . Derelict Logs Recovered . | . . . Drone Launches . | . . . Drone Recoveries . | . . . Exploration | -11 -10 -9 ------------- Run | Yrd Mat Mat Turns Passed 948 | 106 409 433 Spaces Moved 404 | 65 199 140 Core 13 | 5 . 8 Treads 294 | 60 199 35 Legs 67 | . . 67 Wheels . | . . . Hover 30 | . . 30 Flight . | . . . Fastest Speed 50 | 50 160 100 Average Speed 162 | 151 160 170 Slowest Speed 190 | 160 160 190 Overloaded Moves . | . . . Propulsion Burnouts . | . . . Robots Hopped . | . . . Potential Cave-ins . | . . . Cave-ins Triggered . | . . . Exploration Rate (%) 16 | 5 30 15 Regions Visited 2 Branch Regions . Pre-discovered Areas . | . . . Known Exits Taken . | . . . Unknown Exits Taken 2 | 1 1 . Scrap Searched . | . . . Spaces Dug . | . . . Terrain Destroyed . | . . . Melee . | . . . Projectile . | . . . AOE . | . . . Terrain Rammed . | . . . Walls Destroyed . | . . . Machines Disabled . | . . . Actions | -11 -10 -9 --------- Run | Yrd Mat Mat Total 574 | 70 237 267 Wait 61 | . 12 49 Move 402 | 64 198 140 Hop . | . . . Pick Up . | . . . Fast Attach 13 | 6 . 7 Attach . | . . . Detach . | . . . Swap 1 | . . 1 Drop 1 | . . 1 Fire 65 | . 26 39 Melee . | . . . Ram 25 | . . 25 Kick 1 | . . 1 Crush 5 | . 1 4 Escape Stasis . | . . . Rewire . | . . . Trap . | . . . Miscellaneous . | . . . Route ------- -11/Scrapyard -10/Materials -9/Materials History --------- Turn | Location | Event 28 | -11/Scrapyard | Discovered new exit (range 16) 107 | -11/Scrapyard | Entered Materials 317 | -10/Materials | Build established: Mutant 424 | -10/Materials | Discovered new exit (range 15) 516 | -10/Materials | Entered another Materials area 516 | -9/Materials | Evolved 2 slots: Propulsion x1, Utility x1 651 | -9/Materials | Lost 5 parts (1p2n2w) 914 | -9/Materials | Core integrity fell below 50% 941 | -9/Materials | Core integrity fell below 20% 949 | -9/Materials | Destroyed by Y-45 Defender with Heavy Assault Rifle Last Messages --------------- 00913_ Hover Unit destroyed. 00916_ Aluminum Leg destroyed. 00919_ System corrupted: IFF burst signal emitted. 00919_ Sml. Laser destroyed. 00922_ Hvy. Assault Rifle destroyed. 00923_ Slammed into Y-45 Defender. 00924_ Destabilizing: System corrupted (+1). 00925_ Slammed into Y-45 Defender. 00925_ U-05 Engineer builds a Door. 00926_ Slammed into Y-45 Defender. 00929_ Destabilizing: Core damaged (-4). 00930_ Slammed into Y-45 Defender. 00934_ Critical hit (Burn: +37). 00934_ Slammed into Y-45 Defender. 00938_ Destabilizing: System corrupted (+2). 00939_ Slammed into Y-45 Defender. 00939_ Destabilizing: System corrupted (+1). 00940_ Critical hit (Burn: +37). 00941_ Slammed into Y-45 Defender. Map ----- +----------------------------------------------------+ | ?????????????????????????????????????????????????? | | ?????????????????????????????????????????????????? | | ?????????????????????????????????????????????????? | | ?????????????????????????????????????????????????? | | ?????????????????????????????????????????????????? | | ?????????????????????????????????????????????????? | | ?????????????????????????????????????????????????? | | ?????????????????????????????????????????????????? | | ?????????????????????????????????????????????????? | | ?????????????????????????????????????????????????? | | ?????????????????????????????????????????????????? | | ?????????????????????????????????????????????????? | | ?????????????????????????????????????????????????? | | ?????????????#?#########?????????????????????????? | | ?????????????# #?????????????????????????? | | ?????????????# """ """ #?????????????????????????? | | ?????????????# """ """ #?????????????????????????? | | ############?# """ """ #?????????????????????????? | | ! #?# #?????????????????????????? | | "" #?# #?????????????????????????? | | """ """ #?# #?????????????????????????? | | """ S" #?# %% #????????????"" =?????????? | | """ """=#######+############## ?????????? | | """ /% %== %% ????????? | | %% =[######%% % %% Y [% ????????? | | +####+########??#% % % %%@ ????????? | | + #?#################+######??????????? | | !# #?# #??????????????????????????? | | + #?# """#??????????????????????????? | | ^ #? #?# """#??????????????????????????? | | #? #?# """#??????????????????????????? | | #??* #?# #??????????????????????????? | | """ #??#####?# % #???########???????????????? | | """ #?###########+####### #???????????????? | | """ #?# %% # """ #???????????????? | | ### % # """ #???????????????? | | # """ #???????????????? | | ###################### + #???????????????? | | ?????????????????????# # #???????????????? | | ?????????????########## ########???????????????? | | ?????????????# # #??????????????????????? | | ?????????????#""" # #??????????????????????? | | ?????????????#""" # #??????????????????????? | | ?????????????#""" # #??????????????????????? | | ?????????????# + ############???????????? | | ?????????????#""" # ??????????? | | ?????????????#""" # ??????????? | | ?????????????#""" # ############???????????? | | ?????????????# # # #?????????????? | | ?????????????########## # ??????????????? | +----------------------------------------------------+ Best States ------------- Heat Dissipation 38 Energy Generation 10 Energy Capacity 250 Matter Stores 300 Matter Capacity 300 Sight Range 16 Terrain Scan Density 10 Evasion (%) 45 Recoil Reduction 2 Item Schematics ----------------- None Robot Schematics ------------------ None Fabricated ------------ Nothing Repaired ---------- Nothing Studied --------- None Alien Tech Used ----------------- None Achievements -------------- None Challenges ------------ None Game ------ Seed DisruptionLargeModule Manual? 0 Play Time 00:06:30 Cumulative 34.6 hours Start 2025.11.30 @ 22:50:48 End 2025.11.30 @ 22:55:16 Sessions 1 Manual Loads 0 Difficulty Rogue Special Mode None Game No. 42 Rogue 42 Adventurer 0 Explorer 0 Win Type - Total 1 Types 1/0/0/0/0/0/0/0/0/0 Lore% 31 Gallery% 30 Achievement% 29 Wizard Run 0 Options --------- Layout 1 ASCII 0 Keyboard 0 Movement Numpad Keybinds 0 Fullscreen 1 Font 24/Smallcaps Map View 50x35 Zoom Use 0% Tactical HUD 1 Map Filters NONE Filters NONE Steam 0 RUN: f3657ffa-bb33-46db-84bc-5cfae6eb4b96